bitfinex/quotes_ETHUSD_20250424
["timestamp","ask_amount","ask_price","bid_price","bid_amount"]
[1745460452821,5.57912871,1792.4,1792.2,3.89003178]
[1745460454437,10.41834161,1792.7,1792.3,8.57940043]
[1745460454631,10.41834161,1792.7,1792.5,3.89003178]
[1745460454832,10.41834161,1792.7,1792.3,6.89003178]
[1745460455039,5.57898858,1792.5,1792.3,3.89003178]
[1745460455408,5.57901989,1792.5,1792.3,3.89003178]
[1745460456052,5.57960192,1792.3,1792.1,3.89003179]
[1745460457043,5.5792434,1792.4,1792.1,3.89003179]
[1745460457044,5.57933148,1792.4,1792.1,3.89003179]
[1745460457350,5.57933148,1792.4,1792.3,3.89003178]
[1745460458647,23.97829356,1793.0,1792.4,3.0]
[1745460458648,18.401,1793.0,1792.4,3.0]
[1745460458816,10.41775924,1792.9,1792.8,3.89003178]
[1745460459138,10.41775924,1792.9,1792.5,5.578629]
[1745460459139,10.41755591,1792.9,1792.6,3.89003178]
[1745460459512,4.84,1792.9,1792.8,3.89003178]
[1745460460653,4.84,1792.9,1792.8,6.89003178]
[1745460461148,4.84,1792.9,1792.8,3.0]
[1745460461452,10.41755591,1792.9,1792.8,3.89003178]
[1745460461746,13.2994115,1792.9,1792.8,3.89003178]
[1745460462749,7.72185559,1792.9,1792.8,3.89003178]
[1745460463150,13.2994115,1792.9,1792.8,3.89003178]
[1745460463550,5.57817491,1792.8,1792.5,3.89003178]
[1745460463725,5.57840976,1792.7,1792.6,3.0]
[1745460464555,5.57817491,1792.8,1792.6,3.0]
[1745460464720,13.29963598,1792.9,1792.6,3.0]
[1745460464921,18.87744115,1792.9,1792.6,3.0]
[1745460465149,13.29963598,1792.9,1792.6,2.9]
[1745460465652,13.29963598,1792.9,1792.7,0.27742633]
[1745460465952,1.3299636,1792.8,1792.5,9.46882316]
[1745460466157,10.41778039,1792.9,1792.7,3.89003178]
[1745460466952,4.84,1792.9,1792.5,3.89003178]
[1745460467256,0.52123679,1792.8,1792.5,9.46880472]
[1745460467432,0.52123679,1792.8,1792.7,3.89003178]
[1745460467749,1.09389949,1792.8,1792.7,3.89003178]
[1745460469221,6.67176651,1792.8,1792.7,3.89003178]
[1745460471550,1.09389949,1792.8,1792.7,3.89003178]
[1745460471753,4.84,1792.9,1792.7,3.89003178]
[1745460474756,0.8299,1793.1,1792.8,3.0]
[1745460475054,5.57695006,1793.1,1792.9,3.89003178]
[1745460476234,4.839,1793.2,1792.9,3.89003178]
[1745460476451,10.41562279,1793.2,1793.1,3.89003178]
[1745460479227,5.57724484,1793.0,1792.9,3.89003178]
[1745460479665,6.40696104,1793.1,1792.9,3.89003178]
[1745460479972,4.839,1793.2,1793.0,0.7721]
[1745460480254,4.839,1793.2,1793.1,3.89003178]
[1745460480763,10.41562279,1793.2,1793.1,4.16435085]
[1745460481344,4.839,1793.2,1793.1,4.16435085]
[1745460483980,5.57635641,1793.3,1793.1,4.16435085]
[1745460484272,5.57360295,1794.2,1793.4,5.57579172]
[1745460484476,4.832,1794.1,1793.8,8.57459409]
[1745460484638,10.40505297,1794.4,1794.1,3.89003178]
[1745460484838,10.40489344,1794.4,1794.3,3.89003178]
[1745460485085,4.832,1794.4,1794.3,3.89003178]
[1745460485387,4.832,1794.4,1794.3,4.16313272]
[1745460487069,10.40489344,1794.4,1794.3,4.16313272]
[1745460488281,5.98899043,1795.2,1794.3,7.16313272]
[1745460488282,0.8221,1795.0,1794.3,7.16313272]
[1745460488445,5.57083633,1795.1,1794.9,3.89003178]
[1745460488645,5.57083633,1795.1,1795.0,3.89003178]
[1745460489080,5.57083633,1795.1,1795.0,4.14925322]
[1745460490193,5.57083633,1795.1,1795.0,0.25922144]
[1745460490357,6.68497169,1795.1,1795.0,0.25922144]
[1745460490562,5.57134102,1794.9,1794.8,3.89003178]
[1745460490761,5.6531,1795.3,1794.9,3.0]
[1745460491084,5.66995867,1795.4,1795.2,3.89003178]
[1745460491267,5.5700997,1795.3,1795.2,3.89003178]
[1745460493493,0.1,1795.4,1795.3,3.0]
[1745460493673,0.1,1795.4,1795.3,9.3304997]
[1745460494691,0.1,1795.4,1795.3,13.22053148]
[1745460494991,10.3967837,1796.1,1795.7,7.65043178]
[1745460495288,4.829,1796.1,1796.0,4.41510397]
[1745460495797,4.829,1796.1,1796.0,0.24371998]
[1745460495798,10.39661872,1796.1,1796.0,0.24371998]
[1745460495973,10.49586271,1796.4,1796.0,4.65882395]
[1745460496288,10.49586271,1796.4,1796.1,0.24371998]
[1745460496289,5.56715456,1796.3,1796.1,0.24371998]
[1745460497400,5.56730876,1796.2,1796.1,0.24371998]
[1745460498193,7.49035509,1796.2,1796.1,0.24371998]
[1745460498692,5.56846475,1795.9,1795.6,4.41510397]
[1745460499181,5.56846475,1795.9,1795.7,3.0]
[1745460499895,4.828,1796.0,1795.7,3.0]
[1745460500098,4.828,1796.0,1795.5,6.3380672]
[1745460500099,4.828,1796.0,1795.9,3.0]
[1745460500396,10.39413058,1796.3,1795.9,9.33673847]
[1745460500694,0.1,1796.4,1796.2,4.41510397]
[1745460500882,5.66675649,1796.4,1796.2,4.41510397]
[1745460501086,0.1,1796.4,1796.2,4.41510397]
[1745460501282,0.1,1796.4,1796.3,3.0]
[1745460502773,0.1,1796.4,1796.3,9.33559883]
[1745460503275,0.1,1796.4,1796.3,3.7686]
[1745460503487,0.1,1796.4,1796.3,9.33559883]
[1745460504096,0.1,1796.4,1796.3,3.7686]
[1745460504308,0.1,1796.4,1796.1,12.98248119]
[1745460504601,0.1,1796.4,1796.3,4.41510397]
[1745460505608,0.1,1796.4,1796.3,9.9821028]
[1745460505819,0.1,1796.4,1796.3,10.7507028]
[1745460506308,0.1,1796.4,1796.3,5.18370397]
[1745460506973,5.94616759,1796.6,1796.3,5.18370397]
[1745460507181,5.94616759,1796.6,1796.4,3.0]
[1745460507408,0.379929,1796.6,1796.5,4.41510397]
[1745460507604,0.379929,1796.6,1796.5,13.75008304]
[1745460509311,0.379929,1796.6,1796.5,8.18370397]
[1745460510684,0.379929,1796.6,1796.5,8.3526597]
[1745460510884,0.379929,1796.6,1796.5,13.91903877]
[1745460512121,0.379929,1796.6,1796.5,15.01903877]
[1745460512932,5.56300224,1797.6,1797.2,9.32279513]
[1745460513117,4.83929814,1797.7,1797.3,12.97900537]
[1745460513311,0.00129814,1797.7,1797.6,5.56297285]
[1745460513522,0.00129814,1797.7,1797.6,13.73677682]
[1745460513693,0.00129814,1797.7,1797.6,13.90295342]
[1745460513894,0.00129814,1797.7,1797.6,3.1661766]
[1745460514127,5.56396154,1797.7,1797.6,0.1661766]
[1745460514331,5.56374832,1797.4,1797.2,4.41510397]
[1745460514524,1.11393064,1797.7,1797.2,4.41510397]
[1745460514728,5.5634823,1797.5,1797.2,4.41510397]
[1745460514929,5.56297285,1797.6,1797.2,4.41510397]
[1745460515158,5.56385306,1797.4,1797.0,4.41510397]
[1745460515443,5.56320004,1797.6,1797.2,7.41510397]
[1745460515598,5.56357898,1797.5,1797.2,7.41510397]
[1745460515798,5.56371015,1797.4,1797.2,7.41510397]
[1745460516098,5.5637423,1797.4,1796.9,0.7587]
[1745460516298,5.56471753,1797.1,1796.8,4.41510397]
[1745460516494,5.56439906,1797.2,1797.0,4.41510397]
[1745460516894,5.56452061,1797.1,1797.0,4.41510397]
[1745460517109,5.56452061,1797.1,1796.8,3.0]
[1745460517110,5.56513996,1796.9,1796.8,4.41510397]
[1745460517293,5.56513996,1796.9,1796.6,4.41510397]
[1745460517294,0.8043,1796.9,1796.6,4.41510397]
[1745460517725,6.36961794,1796.9,1796.6,4.41510397]
[1745460518403,5.6413,1797.3,1796.8,4.41510397]
[1745460518615,4.837,1797.3,1797.2,3.0]
[1745460518813,0.8043,1797.5,1797.2,8.56419642]
[1745460518994,10.39914594,1797.6,1797.3,4.41510397]
[1745460519209,5.5633036,1797.5,1797.3,4.41510397]
[1745460519903,5.56359185,1797.4,1797.3,7.41510397]
[1745460520103,5.56347533,1797.5,1797.3,7.41510397]
[1745460520722,5.56359185,1797.4,1797.3,7.41510397]
[1745460520901,5.56359185,1797.4,1797.1,7.41510397]
[1745460521124,5.56359185,1797.4,1797.1,4.41510397]
[1745460521125,5.56374906,1797.4,1797.1,4.41510397]
[1745460521326,6.92428364,1797.4,1796.9,4.41510397]
[1745460521517,5.56483027,1797.0,1796.9,4.41510397]
[1745460521922,0.8043,1797.4,1797.0,3.0]
[1745460522251,0.8043,1797.4,1796.9,4.41510397]
[1745460522252,5.56344929,1797.5,1797.2,4.41510397]
[1745460522747,4.836,1797.6,1797.2,4.41510397]
[1745460522748,10.39906027,1797.6,1797.2,4.41510397]
[1745460522919,10.39906027,1797.6,1797.2,9.97915873]
[1745460523124,10.34906027,1797.6,1797.2,9.97915873]
[1745460523742,5.56366969,1797.4,1797.2,4.41510397]
[1745460523927,5.56359158,1797.5,1797.2,4.41510397]
[1745460524626,15.91234084,1797.6,1797.2,4.41510397]
[1745460524832,5.56330198,1797.5,1797.2,4.41510397]
[1745460525243,0.00129814,1797.7,1797.4,9.97852404]
[1745460525548,0.00129814,1797.7,1797.6,4.41510397]
[1745460525870,0.00129814,1797.7,1797.6,10.11571707]
[1745460526821,0.00129814,1797.7,1797.6,4.55274422]
[1745460527223,0.00129814,1797.7,1797.6,10.11571707]
[1745460527423,0.00129814,1797.7,1797.6,4.55274422]
[1745460528041,0.00129814,1797.7,1797.6,10.11571707]
[1745460528241,5.56396154,1797.7,1797.6,0.13764025]
[1745460528553,0.00129814,1797.7,1797.6,4.41510397]
[1745460528769,0.00129814,1797.7,1797.6,4.55274422]
[1745460528920,0.00129814,1797.7,1797.6,7.55274422]
[1745460530956,0.00129814,1797.7,1797.6,13.93081707]
[1745460531252,0.00129814,1797.7,1797.6,8.36784422]
[1745460531550,5.56396154,1797.7,1797.6,0.13764025]
[1745460531753,5.56318176,1797.6,1797.3,3.0]
[1745460531922,5.56318176,1797.6,1797.4,0.13571042]
[1745460532252,0.00129814,1797.7,1797.5,3.0]
[1745460532426,5.5640328,1797.7,1797.5,3.13571042]
[1745460532626,0.00129814,1797.7,1797.5,3.13571042]
[1745460535157,0.00129814,1797.7,1797.6,7.41510397]
[1745460535363,0.00129814,1797.7,1797.6,13.9291282]
[1745460536833,0.00129814,1797.7,1797.6,8.36615535]
[1745460537031,0.00129814,1797.7,1797.6,13.9291282]
[1745460539263,0.5038948,1798.4,1798.3,5.56080742]
[1745460539449,0.5038948,1798.4,1798.3,13.79101139]
[1745460539653,0.5038948,1798.4,1798.3,13.92617879]
[1745460540331,0.51791315,1798.9,1798.8,8.55926173]
[1745460540532,6.36596269,1799.5,1798.8,7.41510397]
[1745460540533,0.8087,1799.5,1798.8,7.41510397]
[1745460540732,0.8087,1799.5,1799.2,4.41510397]
[1745460540949,5.65765446,1799.4,1799.2,4.41510397]
[1745460541259,5.65765446,1799.4,1799.3,0.1351674]
[1745460541260,5.65740802,1799.4,1799.3,0.1351674]
[1745460542952,5.55825573,1799.2,1798.8,5.22280397]
[1745460543154,5.55953185,1798.8,1798.6,4.41510397]
[1745460543466,5.55936458,1798.8,1798.6,4.41510397]
[1745460543654,5.56006709,1798.6,1798.4,5.22280397]
[1745460544045,5.55974943,1798.7,1798.5,3.0]
[1745460544437,5.55942465,1798.8,1798.5,3.0]
[1745460544634,0.8021,1799.0,1798.7,3.0]
[1745460544966,4.965,1799.2,1799.0,3.0]
[1745460545134,0.8021,1799.3,1799.0,3.0]
[1745460545330,5.55825717,1799.2,1799.0,3.0]
[1745460545971,11.11653933,1799.2,1799.0,3.0]
[1745460546268,5.55864369,1799.0,1798.9,4.41510397]
[1745460548463,0.8021,1799.3,1798.9,4.41510397]
[1745460548673,5.55834941,1799.1,1798.9,4.41510397]
[1745460549047,5.5583889,1799.1,1798.9,4.41510397]
[1745460550048,5.5584776,1799.1,1798.9,4.41510397]
[1745460551371,6.67015082,1799.1,1798.9,4.41510397]
[1745460551565,5.55864369,1799.0,1798.9,4.41510397]
[1745460551869,5.55926173,1798.8,1798.2,0.8077]
[1745460552069,5.56025485,1798.5,1798.2,5.22280397]
[1745460552367,5.55995704,1798.6,1798.3,3.0]
[1745460552549,5.560346,1798.5,1798.2,4.41510397]
[1745460552746,6.19621428,1798.6,1798.2,4.41510397]
[1745460552943,6.19621428,1798.6,1798.2,10.78376773]
[1745460553145,5.56000858,1798.6,1798.4,4.41510397]
[1745460553350,5.56065103,1798.4,1798.2,5.22280397]
[1745460553668,5.56045082,1798.5,1798.2,4.41510397]
[1745460554371,5.56063076,1798.4,1798.2,4.41510397]
[1745460554669,5.56071431,1798.4,1798.2,4.41510397]
[1745460554869,5.56047872,1798.5,1798.2,4.41510397]
[1745460555061,5.56004315,1798.6,1798.2,9.97620026]
[1745460555371,5.55988014,1798.6,1798.4,4.41510397]
[1745460555673,5.55988014,1798.6,1798.5,0.10872208]
[1745460556552,5.55939234,1798.8,1798.5,3.10872208]
[1745460556751,5.55959603,1798.7,1798.5,3.10872208]
[1745460557260,5.5598799,1798.6,1798.5,3.10872208]
[1745460557451,5.55959603,1798.7,1798.5,3.10872208]
[1745460558581,5.5598799,1798.6,1798.5,3.10872208]
[1745460559275,5.5598799,1798.6,1798.5,0.10872208]
[1745460559673,6.3589556,1798.9,1798.5,0.10872208]
[1745460559674,5.5597776,1798.7,1798.5,0.10872208]
[1745460560307,5.56049822,1798.4,1797.2,6.38929932]
[1745460560458,5.56235576,1797.8,1797.4,4.41510397]
[1745460560657,4.963,1798.1,1797.7,4.41510397]
[1745460560861,6.36165524,1798.1,1797.7,4.41510397]
[1745460561081,5.56176012,1798.0,1797.7,4.41510397]
[1745460561254,10.52427904,1798.2,1797.8,3.0]
[1745460561654,5.56143737,1798.1,1797.7,4.41510397]
[1745460561869,10.52427373,1798.2,1797.8,3.0]
[1745460562079,5.56155053,1798.1,1797.8,3.0]
[1745460562266,4.963,1798.2,1797.8,3.0]
[1745460562789,5.56164117,1798.1,1797.8,3.0]
[1745460562973,5.56186564,1798.0,1797.8,3.0]
[1745460563168,5.5620446,1797.9,1797.8,3.0]
[1745460563391,5.5620446,1797.9,1797.4,4.963]
[1745460563392,0.7703,1797.4,1796.4,0.7956]
[1745460563585,5.56495302,1797.0,1796.6,4.41510397]
[1745460563778,5.56495302,1797.0,1796.6,9.98116241]
[1745460564172,5.56495302,1797.0,1796.7,3.0]
[1745460564386,5.56588243,1796.7,1796.4,5.21070397]
[1745460564572,5.56562882,1796.8,1796.4,5.21070397]
[1745460564905,5.56619831,1796.6,1796.4,4.41510397]
[1745460565101,5.56579076,1796.7,1796.4,4.41510397]
[1745460565416,0.7703,1796.6,1796.1,0.1]
[1745460565703,5.56695503,1796.4,1796.1,0.1]
[1745460565871,5.56695402,1796.4,1796.1,0.1]
[1745460566699,5.56685679,1796.4,1796.1,0.1]
[1745460567075,5.56688656,1796.4,1796.1,0.1]
[1745460567278,5.56655107,1796.5,1796.2,3.10771282]
[1745460567576,6.33549877,1796.9,1796.4,3.0]
[1745460567760,5.56557794,1796.8,1796.5,4.53992788]
[1745460567965,5.56606924,1796.6,1796.5,0.12482391]
[1745460568429,6.33564028,1796.9,1796.5,4.53992788]
[1745460568569,5.5655667,1796.8,1796.5,4.53992788]
[1745460569679,0.63358667,1796.8,1796.5,0.12482391]
[1745460570213,5.56588463,1796.7,1796.5,0.12482391]
[1745460570411,0.7703,1796.9,1796.6,3.0]
[1745460570603,10.52996283,1797.0,1796.7,0.12307418]
[1745460570800,10.52996283,1797.0,1796.6,8.56593934]
[1745460570984,4.965,1797.0,1796.8,3.0]
[1745460571190,6.33465588,1797.2,1796.8,3.0]
[1745460571387,5.56463493,1797.1,1796.9,0.12277255]
[1745460571589,6.38960876,1796.2,1795.3,0.7565]
[1745460571791,6.38960876,1796.2,1795.6,4.41510397]
[1745460573124,6.38960876,1796.2,1795.7,3.0]
[1745460573288,6.38960876,1796.2,1795.7,8.56864726]
[1745460573488,5.56730876,1796.2,1795.9,3.0]
[1745460573917,5.56718167,1796.3,1795.9,3.0]
[1745460574627,5.56718167,1796.3,1795.9,8.56821102]
[1745460574986,6.1993,1796.5,1796.2,4.41510397]
[1745460575185,5.56638249,1796.5,1796.2,4.41510397]
[1745460575421,5.56607778,1796.6,1796.2,4.41510397]
[1745460575624,5.56607778,1796.6,1796.2,9.98237688]
[1745460576128,5.56593757,1796.7,1796.3,5.56695917]
[1745460576289,5.56558841,1796.8,1796.4,12.98162761]
[1745460577034,5.56615477,1796.6,1796.4,3.0]
[1745460577325,5.56637907,1796.5,1796.4,3.0]
[1745460577491,5.56637907,1796.5,1796.2,3.0]
[1745460577692,5.56627399,1796.6,1796.2,3.0]
[1745460577919,5.56627399,1796.6,1796.2,8.56724018]
[1745460578223,5.56638835,1796.5,1796.1,3.8565]
[1745460578390,0.8223,1795.8,1794.9,0.7565]
[1745460578590,0.8223,1795.8,1795.0,9.98600748]
[1745460578786,5.57029226,1795.3,1795.0,4.41510397]
[1745460578991,5.56885894,1795.7,1795.0,4.41510397]
[1745460579193,5.57021394,1795.3,1795.0,4.41510397]
[1745460579428,6.12620598,1795.6,1795.1,5.670664]
[1745460579801,11.69564679,1795.6,1795.1,5.670664]
[1745460580017,5.56950706,1795.5,1795.1,5.670664]
[1745460580202,6.12620598,1795.6,1795.1,5.670664]
[1745460580203,6.12625581,1795.6,1795.1,5.670664]
[1745460580406,5.56901721,1795.7,1795.2,8.57017856]
[1745460580407,5.56905816,1795.7,1795.2,8.57017856]
[1745460580607,5.56905816,1795.7,1795.3,5.57008928]
[1745460581130,5.56905816,1795.7,1795.2,8.57021346]
[1745460581828,11.13820476,1795.7,1795.2,8.57021346]
[1745460582030,5.56905816,1795.7,1795.2,8.57021346]
[1745460582228,5.56909125,1795.7,1795.2,8.57021346]
[1745460582726,5.379,1795.9,1795.4,5.56953808]
[1745460582727,10.9474207,1795.9,1795.4,5.56953808]
[1745460584031,5.56862443,1795.8,1795.4,5.56953808]
[1745460584233,5.379,1795.9,1795.5,3.0]
[1745460584731,5.56749379,1796.2,1795.7,11.13732314]
[1745460584904,5.56749379,1796.2,1795.7,5.56863005]
[1745460585229,5.56768313,1796.1,1795.7,5.56863005]
[1745460585594,5.56751467,1796.2,1795.7,11.1372473]
[1745460585795,5.381,1796.3,1795.7,3.0]
[1745460585999,5.56782156,1796.1,1795.7,3.0]
[1745460586317,11.13573777,1796.1,1795.7,3.0]
[1745460586522,5.56782156,1796.1,1795.7,3.0]
[1745460587632,5.56782156,1796.1,1795.7,8.56883692]
[1745460590641,5.381,1796.3,1795.7,3.0]
[1745460590997,5.56927176,1795.6,1795.4,0.7565]
[1745460591118,5.56927176,1795.6,1795.3,3.0]
[1745460591604,5.56902576,1795.7,1795.3,3.0]
[1745460591807,5.56902576,1795.7,1795.3,8.57008473]
[1745460592003,5.56881205,1795.8,1795.3,8.56988602]
[1745460592209,0.7879,1795.9,1795.2,3.7667]
[1745460592416,5.56815401,1796.0,1795.5,5.56928565]
[1745460592600,5.56753183,1796.2,1795.8,5.5684225]
[1745460592802,5.56740158,1796.2,1795.8,5.5684225]
[1745460593028,5.56740158,1796.2,1795.8,5.56836039]
[1745460593402,11.73602872,1796.3,1795.8,5.56836039]
[1745460593608,10.94812872,1796.3,1795.7,3.0]
[1745460593840,10.94812872,1796.3,1795.9,5.56802903]
[1745460594240,16.51539724,1796.3,1795.9,5.56802903]
[1745460594544,16.5154239,1796.3,1795.8,5.56829862]
[1745460594774,5.56733486,1796.2,1795.8,5.56829862]
[1745460595942,5.56743714,1796.2,1795.8,5.5684442]
[1745460596650,5.56743714,1796.2,1795.8,11.13676999]
[1745460597049,5.56743714,1796.2,1795.8,5.56832579]
[1745460597428,10.94818215,1796.3,1795.9,5.56819998]
[1745460597817,5.56731234,1796.2,1795.9,5.56819998]
[1745460598048,5.56731234,1796.2,1795.8,5.56835722]
[1745460600776,10.94816751,1796.3,1795.9,5.56812997]
[1745460600980,5.5673306,1796.2,1795.8,5.56834536]
[1745460601196,10.94816751,1796.3,1795.9,5.56822603]
[1745460601403,10.94818785,1796.3,1795.9,5.56822603]
[1745460602100,5.56735681,1796.2,1795.9,5.56822603]
[1745460602407,5.56836096,1795.9,1795.6,3.0]
[1745460602699,5.56842865,1795.9,1795.5,0.7667]
[1745460603084,5.56842865,1795.9,1795.5,6.33607212]
[1745460603599,5.56865339,1795.8,1795.5,0.7667]
[1745460603773,5.56845046,1795.9,1795.5,6.33616203]
[1745460603973,5.56845046,1795.9,1795.5,0.7667]
[1745460604187,11.13698112,1795.9,1795.5,0.7667]
[1745460604384,5.56845046,1795.9,1795.5,6.33615737]
[1745460605301,5.56845046,1795.9,1795.5,0.7667]
[1745460605596,11.13758786,1795.8,1795.5,0.7667]
[1745460605798,5.56876061,1795.8,1795.5,0.7667]
[1745460605974,5.5690041,1795.7,1795.3,13.74274641]
[1745460606495,5.56868559,1795.8,1795.3,13.7427]
[1745460606676,5.56868559,1795.8,1795.4,5.56964265]
[1745460607400,11.13752124,1795.8,1795.4,5.56964265]
[1745460607965,11.13752124,1795.8,1795.5,3.0]
[1745460608170,5.56868559,1795.8,1795.5,3.0]
[1745460608474,11.13748919,1795.8,1795.5,3.0]
[1745460609001,5.56868559,1795.8,1795.5,3.0]
[1745460611398,6.38131876,1796.1,1795.5,3.0]
[1745460611399,6.38149411,1796.1,1795.5,4.41760847]
[1745460611601,0.8137,1796.1,1795.7,3.0]
[1745460611893,6.38143114,1796.1,1795.8,3.0]
[1745460612294,0.8137,1796.1,1795.8,3.0]
[1745460612482,5.56818372,1796.0,1795.6,3.7552]
[1745460612688,5.56818372,1796.0,1795.6,9.32434493]
[1745460613504,5.56818372,1796.0,1795.6,14.89333638]
[1745460613721,6.3814674,1796.1,1795.8,3.0]
[1745460615291,5.56795518,1796.0,1795.8,3.0]
[1745460615887,5.56795403,1796.0,1795.8,3.0]
[1745460616323,10.94802336,1796.3,1795.8,8.56850459]
[1745460616324,11.72879129,1796.3,1795.8,8.56850459]
[1745460616492,5.56741736,1796.2,1795.8,8.56850459]
[1745460616691,5.56741736,1796.2,1795.8,14.13687098]
[1745460616922,5.56741736,1796.2,1795.8,8.56836639]
[1745460617696,5.56741736,1796.2,1795.9,5.56822947]
[1745460617891,11.13499326,1796.2,1795.8,8.56835219]
[1745460618097,5.56741663,1796.2,1795.8,8.56835219]
[1745460618298,5.56741663,1796.2,1795.8,8.56831451]
[1745460620129,5.56741663,1796.2,1795.8,14.13663642]
[1745460620332,5.56741663,1796.2,1795.8,8.56831451]
[1745460621530,5.56762159,1796.1,1795.8,3.0]
[1745460621848,5.56741663,1796.2,1795.8,8.56845169]
[1745460622147,11.13496879,1796.2,1795.8,8.56845169]
[1745460622351,5.56741663,1796.2,1795.8,8.56845169]
[1745460622653,0.7806,1796.5,1795.9,5.21720847]
[1745460622823,6.34609919,1796.8,1796.5,3.0]
[1745460623028,5.56587082,1796.7,1796.5,3.0]
[1745460623743,5.56587082,1796.7,1796.3,8.5668079]
[1745460624143,6.34606682,1796.8,1796.3,8.56678252]
[1745460624318,0.63460668,1796.7,1796.5,3.0]
[1745460627439,0.7806,1796.8,1796.5,8.56636495]
[1745460627650,5.56498898,1797.0,1796.5,8.56614033]
[1745460627651,5.56503144,1797.0,1796.5,8.56614033]
[1745460627858,30.03527807,1797.1,1796.8,3.0]
[1745460627859,6.1076,1797.1,1796.8,3.0]
[1745460628161,5.327,1797.1,1796.9,5.56497405]
[1745460628329,5.327,1797.1,1796.9,5.56494159]
[1745460628532,5.327,1797.1,1797.0,5.56483027]
[1745460628937,5.326,1797.5,1797.2,5.56410527]
[1745460629138,0.7806,1797.6,1797.3,5.56379718]
[1745460629358,5.56147363,1798.1,1797.3,5.56379718]
[1745460629359,6.34246166,1798.0,1797.6,5.56282782]
[1745460629589,0.7806,1798.0,1797.5,3.0]
[1745460629744,5.56250897,1797.8,1797.3,0.7996]
[1745460629944,0.5562509,1797.7,1797.5,3.0]
[1745460630471,5.56250503,1797.8,1797.5,3.0]
[1745460630674,5.56230363,1797.9,1797.5,8.56316892]
[1745460630837,6.34248988,1798.0,1797.6,5.56290208]
[1745460631275,5.56225678,1797.9,1797.5,3.0]
[1745460631480,5.56225678,1797.9,1797.7,0.23549779]
[1745460631768,5.5626634,1797.7,1797.6,0.23158191]
[1745460632070,5.5626634,1797.7,1797.3,3.7996]
[1745460632449,10.88750894,1797.8,1797.3,9.36335316]
[1745460632741,10.88750894,1797.8,1797.5,3.0]
[1745460633162,5.325,1797.8,1797.5,3.0]
[1745460633353,10.88735446,1797.8,1797.5,3.0]
[1745460633537,5.325,1797.8,1797.5,3.0]
[1745460633743,10.8873828,1797.8,1797.5,3.0]
[1745460634582,5.56267682,1797.7,1797.5,3.0]
[1745460634745,10.88753607,1797.8,1797.5,3.0]
[1745460635464,12.6515563,1797.8,1797.5,3.0]
[1745460637299,12.6515563,1797.8,1797.5,6.86914111]
[1745460637862,10.88753607,1797.8,1797.5,6.86914111]
[1745460639103,5.56513996,1796.9,1796.4,0.7813]
[1745460639403,5.56553104,1796.8,1796.5,3.86914111]
[1745460639570,5.56483027,1797.0,1796.6,0.17449191]
[1745460639916,5.56590617,1796.7,1796.6,0.17449191]
[1745460640403,5.56526991,1796.9,1796.6,4.04363302]
[1745460640700,5.5649809,1797.0,1796.6,4.04363302]
[1745460640886,11.13006993,1797.0,1796.6,4.04363302]
[1745460641193,5.5657175,1796.8,1796.6,4.04363302]
[1745460641498,5.5657175,1796.8,1796.6,0.17449191]
[1745460642521,5.56575944,1796.7,1796.6,0.17449191]
[1745460643737,5.56606924,1796.6,1795.2,0.7624]
[1745460643901,5.56804327,1796.0,1795.5,5.56923196]
[1745460644101,0.8188,1796.1,1795.4,4.41269771]
[1745460644102,5.5686641,1795.8,1795.4,9.9824244]
[1745460644330,5.56888743,1795.7,1795.4,4.41269771]
[1745460644533,0.8188,1796.1,1795.4,4.41269771]
[1745460644534,5.56924692,1795.6,1795.4,4.41269771]
[1745460644735,5.56935844,1795.6,1795.2,0.7624]
[1745460645031,5.56935844,1795.6,1795.2,6.33274775]
[1745460645230,5.56935844,1795.6,1795.3,3.0]
[1745460645434,5.57010679,1795.3,1795.1,0.1]
[1745460645605,5.56997817,1795.4,1795.2,0.15499078]
[1745460645805,5.56998678,1795.4,1795.1,0.1]
[1745460646005,5.56998678,1795.4,1795.2,0.15499078]
[1745460646201,6.68394655,1795.4,1795.1,0.1]
[1745460646433,6.68394655,1795.4,1795.2,0.15499078]
[1745460646634,1.11395977,1795.4,1795.1,0.1]
[1745460646804,17.54361474,1795.6,1795.2,0.15499078]
[1745460646999,5.209,1795.6,1795.3,4.41269771]
[1745460647206,5.209,1795.6,1795.4,0.15499078]
[1745460648423,6.0363,1796.0,1795.5,4.41269771]
[1745460648726,5.56843099,1795.9,1795.6,3.0]
[1745460648926,5.56843099,1795.9,1795.6,3.15499078]
[1745460649238,5.56855793,1795.8,1795.6,3.15499078]
[1745460650418,5.56885894,1795.7,1795.6,0.15499078]
[1745460650618,5.56885894,1795.7,1795.4,3.0]
[1745460650941,5.56885894,1795.7,1795.5,0.15499078]
[1745460651436,5.56869751,1795.8,1795.5,0.15499078]
[1745460651807,5.56899986,1795.7,1795.5,0.15499078]
[1745460652206,5.56837035,1795.9,1795.5,0.15499078]
[1745460652207,5.56874761,1795.8,1795.5,0.15499078]
[1745460652415,5.56889567,1795.7,1795.5,0.15499078]
[1745460655450,5.56869015,1795.8,1795.5,0.15499078]
[1745460660318,5.56891621,1795.7,1795.5,0.15499078]
[1745460661347,6.68243195,1795.8,1795.5,0.15499078]
[1745460662854,6.0363,1796.0,1795.7,4.41269771]
[1745460663053,24.47540229,1796.7,1795.8,0.16735388]
[1745460663054,5.5673237,1796.2,1795.8,0.16735388]
[1745460663225,0.7691,1796.3,1795.8,3.16735388]
[1745460663425,5.56752427,1796.2,1795.8,3.16735388]
[1745460663739,5.56747935,1796.2,1795.8,8.73589932]
[1745460663945,6.33627187,1796.3,1795.9,5.56822069]
[1745460664254,11.90352009,1796.3,1796.0,0.16663334]
[1745460664456,6.33627187,1796.3,1796.0,0.16663334]
[1745460664751,0.4242511,1796.9,1796.0,0.16663334]
[1745460664752,0.4242511,1796.9,1796.0,3.16663334]
[1745460664952,5.56510208,1797.0,1796.0,3.16663334]
[1745460664953,0.7691,1797.4,1797.0,5.56471347]
[1745460665153,0.7691,1797.4,1797.1,10.36422734]
[1745460665341,0.7691,1797.4,1797.1,0.16549268]
[1745460665544,5.56421099,1797.2,1797.1,0.16549268]
[1745460665748,5.56453694,1797.1,1796.7,3.7573]
[1745460665964,6.12082017,1797.2,1796.7,9.32305207]
[1745460666354,0.5564211,1797.2,1796.8,5.56526237]
[1745460666551,6.3328451,1797.4,1797.1,4.41269771]
[1745460666784,0.7691,1797.4,1797.1,4.41269771]
[1745460667305,6.33281321,1797.4,1797.1,4.41269771]
[1745460667669,0.7691,1797.4,1797.1,4.41269771]
[1745460667871,0.7691,1797.4,1797.1,9.97708606]
[1745460668393,1.40235522,1797.4,1797.1,4.41269771]